bitfinex/quotes_BTCUSD_20240729
["timestamp","ask_amount","ask_price","bid_price","bid_amount"]
[1722263465219,0.145127,68905.0,68898.0,0.145141]
[1722263465391,0.07154355,68906.0,68902.0,0.145132]
[1722263465392,0.08525719,68904.0,68902.0,0.145132]
[1722263465644,0.07154355,68906.0,68902.0,0.28823139]
[1722263465967,0.02277009,68904.0,68902.0,0.14309939]
[1722263466159,0.02277009,68904.0,68903.0,0.14309939]
[1722263466314,0.02277009,68904.0,68903.0,0.73179485]
[1722263466517,0.02277009,68904.0,68903.0,1.30941861]
[1722263466723,0.00084,68918.0,68911.0,0.290228]
[1722263466906,0.00084,68918.0,68917.0,0.435306]
[1722263467115,0.00084,68918.0,68917.0,0.20439939]
[1722263467319,0.00084,68918.0,68917.0,0.34950139]
[1722263467519,0.00084,68918.0,68917.0,0.20439939]
[1722263467919,0.00084,68918.0,68917.0,0.34950139]
[1722263468167,0.00084,68918.0,68917.0,1.01850939]
[1722263468693,0.00084,68918.0,68917.0,0.29299939]
[1722263468971,0.00084,68918.0,68917.0,0.43810139]
[1722263469175,0.00084,68918.0,68917.0,0.72830539]
[1722263469352,0.00084,68918.0,68917.0,1.30871339]
[1722263469955,0.07154355,68935.0,68929.0,0.0831]
[1722263470160,0.07154355,68935.0,68930.0,0.28817339]
[1722263470371,0.07154355,68935.0,68931.0,0.145072]
[1722263470499,0.07154355,68935.0,68929.0,0.0831]
[1722263470500,0.07154355,68935.0,68932.0,0.14309939]
[1722263470697,0.07238355,68942.0,68932.0,0.14309939]
[1722263470903,0.07154355,68935.0,68933.0,0.145067]
[1722263471103,0.00084,68942.0,68935.0,0.0656]
[1722263471303,0.00084,68942.0,68941.0,0.516154]
[1722263471525,0.00084,68942.0,68941.0,0.65925339]
[1722263471727,0.00084,68942.0,68941.0,1.01495639]
[1722263472228,0.00084,68942.0,68941.0,0.72485339]
[1722263472397,0.00084,68942.0,68941.0,1.01495639]
[1722263472594,0.00084,68942.0,68941.0,0.72485339]
[1722263472843,0.00084,68942.0,68941.0,1.01495639]
[1722263473802,0.00084,68942.0,68941.0,1.30505939]
[1722263474280,0.00818,68955.0,68954.0,0.72512]
[1722263474485,0.00818,68955.0,68954.0,1.02241861]
[1722263474687,0.00818,68955.0,68954.0,0.29729861]
[1722263474885,0.00818,68955.0,68954.0,0.44232261]
[1722263475346,0.00818,68955.0,68954.0,0.73237061]
[1722263475684,0.00818,68955.0,68954.0,1.02241861]
[1722263476717,0.00818,68955.0,68954.0,0.73237061]
[1722263477103,0.00818,68955.0,68954.0,1.02241861]
[1722263477308,0.00818,68955.0,68954.0,1.31246661]
[1722263477504,0.00818,68955.0,68954.0,1.02241861]
[1722263477704,0.00818,68955.0,68954.0,1.31246661]
[1722263477912,0.07154355,68965.0,68954.0,0.31129861]
[1722263478108,9e-05,68967.0,68966.0,0.580795]
[1722263478355,9e-05,68967.0,68966.0,0.30329861]
[1722263478557,9e-05,68967.0,68966.0,0.73829361]
[1722263479072,9e-05,68967.0,68966.0,1.02829061]
[1722263479248,9e-05,68967.0,68966.0,1.02719061]
[1722263479449,9e-05,68967.0,68966.0,0.30219861]
[1722263481511,9e-05,68967.0,68966.0,1.12719061]
[1722263481757,9e-05,68967.0,68966.0,1.41718761]
[1722263482070,0.00818,68974.0,68973.0,1.114888]
[1722263482387,0.00818,68974.0,68973.0,1.41008661]
[1722263483037,0.00818,68974.0,68973.0,0.86841258]
[1722263483235,0.03092515,68974.0,68973.0,0.44018261]
[1722263483559,0.03092515,68974.0,68973.0,0.29519861]
[1722263483759,0.46587115,68974.0,68973.0,0.01439922]
[1722263483967,0.75583515,68974.0,68973.0,0.01439922]
[1722263484221,0.144992,68969.0,68967.0,0.09241181]
[1722263484386,0.07154355,68969.0,68968.0,0.14309939]
[1722263484591,0.07154355,68969.0,68968.0,0.28809339]
[1722263484749,0.07154355,68969.0,68968.0,0.14309939]
[1722263484949,0.00818,68974.0,68968.0,0.14309939]
[1722263485213,0.00818,68974.0,68973.0,0.144984]
[1722263485368,0.00818,68974.0,68973.0,0.57805139]
[1722263485565,0.00818,68974.0,68973.0,0.86801939]
[1722263485763,0.00818,68974.0,68973.0,0.57805139]
[1722263485981,0.00818,68974.0,68973.0,0.86801939]
[1722263486172,0.00818,68974.0,68973.0,0.57805139]
[1722263486373,0.03092654,68974.0,68973.0,0.57805139]
[1722263486715,0.03092654,68974.0,68973.0,0.15409939]
[1722263487044,0.03092654,68974.0,68973.0,0.58905139]
[1722263487305,0.00818,68974.0,68973.0,0.58905139]
[1722263487525,0.00818,68974.0,68973.0,1.71038739]
[1722263487729,0.00818,68974.0,68973.0,2.12238739]
[1722263487973,0.00818,68974.0,68973.0,2.41235539]
[1722263488346,0.00818,68974.0,68973.0,2.46235539]
[1722263488574,0.00818,68974.0,68973.0,2.45135539]
[1722263488722,0.00818,68974.0,68973.0,2.40135539]
[1722263488925,0.00818,68974.0,68973.0,2.45135539]
[1722263489134,0.00818,68974.0,68973.0,2.46535539]
[1722263489345,0.00818,68974.0,68973.0,2.44235539]
[1722263489550,0.00818,68974.0,68973.0,2.42835539]
[1722263489706,0.00818,68974.0,68973.0,2.43587931]
[1722263490119,0.03092362,68974.0,68973.0,2.44987931]
[1722263490335,0.03092362,68974.0,68973.0,1.70991131]
[1722263490539,0.03092362,68974.0,68973.0,1.42091131]
[1722263490737,0.03092362,68974.0,68973.0,1.47091131]
[1722263490958,0.03092362,68974.0,68973.0,1.57091131]
[1722263491159,0.03092362,68974.0,68973.0,0.84097531]
[1722263491379,0.00818,68974.0,68973.0,1.13094331]
[1722263491604,0.00818,68974.0,68973.0,1.42091131]
[1722263492414,0.00818,68974.0,68973.0,1.45691131]
[1722263492623,0.00818,68974.0,68973.0,1.78387931]
[1722263492895,0.0154804,68975.0,68974.0,1.454838]
[1722263493133,0.0154804,68975.0,68974.0,1.8924492]
[1722263493329,0.0154804,68975.0,68974.0,1.7924492]
[1722263493535,0.0154804,68975.0,68974.0,1.8924492]
[1722263494162,0.0154804,68975.0,68974.0,1.5024852]
[1722263494372,0.0154804,68975.0,68974.0,1.1395212]
[1722263494594,0.0154804,68975.0,68974.0,0.4146112]
[1722263494802,0.0382236,68975.0,68974.0,0.28579939]
[1722263495218,0.0154804,68975.0,68974.0,0.28579939]
[1722263495650,0.0154804,68975.0,68974.0,0.29979939]
[1722263496580,0.0154804,68975.0,68974.0,0.44478139]
[1722263496781,0.0154804,68975.0,68974.0,0.29979939]
[1722263497124,0.0154804,68975.0,68974.0,0.28579939]
[1722263497268,0.0154804,68975.0,68974.0,0.20579939]
[1722263497469,0.0154804,68975.0,68974.0,0.35078139]
[1722263497690,0.0154804,68975.0,68974.0,0.20579939]
[1722263497891,0.0154804,68975.0,68974.0,0.35078139]
[1722263498090,0.0154804,68975.0,68974.0,0.64074539]
[1722263498375,0.03822556,68975.0,68974.0,0.94470939]
[1722263498620,0.0154804,68975.0,68974.0,1.23467339]
[1722263499022,0.0154804,68975.0,68974.0,1.31417339]
[1722263499291,0.0154804,68975.0,68974.0,1.77713739]
[1722263499497,0.0154804,68975.0,68974.0,1.87713739]
[1722263499819,0.00817,68978.0,68977.0,0.537475]
[1722263500039,0.00817,68987.0,68981.0,0.727401]
[1722263500231,0.0015542,69010.0,69009.0,0.144908]
[1722263500354,0.0015542,69010.0,69009.0,0.28800739]
[1722263500554,0.00817,69011.0,69009.0,0.14309939]
[1722263500757,0.00817,69011.0,69010.0,0.14309939]
[1722263501164,0.00817,69011.0,69010.0,0.28800539]
[1722263501741,0.00817,69011.0,69010.0,0.57781839]
[1722263501948,0.0309046,69011.0,69010.0,0.86763139]
[1722263502822,0.00817,69011.0,69010.0,0.86763139]
[1722263503667,0.00817,69011.0,69010.0,1.69904439]
[1722263503866,0.00817,69011.0,69010.0,2.13014439]
[1722263504092,0.00817,69011.0,69010.0,2.51995739]
[1722263504505,0.0029,69025.0,69024.0,1.249739]
[1722263504746,0.0029,69025.0,69024.0,1.85910425]
[1722263504945,0.0029,69025.0,69024.0,2.27185825]
[1722263505899,0.0029,69025.0,69024.0,1.98210425]
[1722263506130,0.0029,69025.0,69024.0,2.02210872]
[1722263506286,0.0029,69025.0,69024.0,1.98210425]
[1722263506480,0.0029,69025.0,69024.0,2.01989456]
[1722263506680,0.0029,69025.0,69024.0,1.61935025]
[1722263506926,0.0029,69025.0,69024.0,1.92310425]
[1722263507132,0.0029,69025.0,69024.0,1.99610425]
[1722263508193,0.0029,69025.0,69024.0,1.65635025]
[1722263508393,0.0029,69025.0,69024.0,0.6663882]
[1722263508752,0.0029,69025.0,69024.0,0.2859112]
[1722263508963,0.0029,69025.0,69024.0,0.1859112]
[1722263508964,0.147775,69025.0,69024.0,0.1859112]
[1722263509416,0.02562976,69025.0,69024.0,0.1859112]
[1722263509587,0.17050476,69025.0,69024.0,0.04281181]
[1722263509788,0.17050476,69025.0,69024.0,0.014]
[1722263509789,0.46025476,69025.0,69024.0,0.014]
[1722263510290,0.17205896,69025.0,69024.0,0.15709939]
[1722263510505,0.02562976,69025.0,69024.0,0.15709939]
[1722263510749,0.75000476,69025.0,69024.0,0.014]
[1722263510917,1.03975476,69025.0,69024.0,0.014]
[1722263511321,0.75000476,69025.0,69024.0,0.014]
[1722263511520,0.17050476,69025.0,69024.0,0.15709939]
[1722263511718,0.147775,69025.0,69024.0,0.15709939]
[1722263511920,0.0029,69025.0,69024.0,0.15709939]
[1722263512101,0.437525,69025.0,69024.0,0.15709939]
[1722263512301,0.727275,69025.0,69024.0,0.15709939]
[1722263512506,0.727275,69025.0,69024.0,0.014]
[1722263512864,0.147775,69025.0,69024.0,0.14309939]
[1722263513004,0.1493292,69025.0,69024.0,0.14309939]
[1722263513204,0.0044542,69025.0,69024.0,0.14309939]
[1722263513839,0.0029,69025.0,69024.0,0.57773039]
[1722263514001,0.0029,69025.0,69024.0,0.96748439]
[1722263514205,0.0029,69025.0,69024.0,1.25723839]
[1722263514555,0.0029,69025.0,69024.0,0.57773039]
[1722263514788,0.0029,69025.0,69024.0,0.20115539]
[1722263514917,0.0029,69025.0,69024.0,0.14309939]
[1722263515106,0.0044542,69025.0,69024.0,0.15709939]
[1722263515304,0.0029,69025.0,69024.0,0.15709939]
[1722263515748,0.0029,69025.0,69024.0,0.28797639]
[1722263515949,0.0029,69025.0,69024.0,0.57773039]
[1722263516151,0.0029,69025.0,69024.0,0.59173039]
[1722263516370,0.02562869,69025.0,69024.0,0.88148439]
[1722263516569,0.02562869,69025.0,69024.0,0.15709939]
[1722263516780,0.0029,69025.0,69024.0,0.28797639]
[1722263517363,0.0029,69025.0,69024.0,0.57773039]
[1722263517591,0.0029,69025.0,69024.0,0.28797639]
[1722263518237,0.0029,69025.0,69024.0,0.14309939]
[1722263518409,0.0029,69025.0,69024.0,0.28797639]
[1722263518723,0.0029,69025.0,69024.0,0.86748439]
[1722263519135,0.0029,69025.0,69024.0,0.14309939]
[1722263519338,0.0029,69025.0,69024.0,0.28797639]
[1722263519582,0.02562863,69025.0,69024.0,0.98148439]
[1722263519746,0.02562863,69025.0,69024.0,1.71099239]
[1722263519978,0.02562863,69025.0,69024.0,1.85079239]
[1722263520177,0.0029,69025.0,69024.0,1.56103839]
[1722263521569,0.0029,69025.0,69024.0,1.66103839]
[1722263521783,0.0029,69025.0,69024.0,1.51103839]
[1722263522002,0.0029,69025.0,69024.0,1.66103839]
[1722263522235,0.0029,69025.0,69024.0,1.57003839]
[1722263522762,0.0029,69025.0,69024.0,1.49703839]
[1722263522930,0.0029,69025.0,69024.0,0.48797639]
[1722263523364,0.0256266,69025.0,69024.0,0.77773039]
[1722263523947,0.0256266,69025.0,69020.0,0.06]
[1722263523948,0.1673266,69025.0,69013.0,0.1]
[1722263524151,0.50623755,69014.0,69013.0,0.1]
[1722263524354,0.50623755,69014.0,69011.0,0.058066]
[1722263524355,0.144902,69012.0,69011.0,0.058066]
[1722263524550,0.54127504,69012.0,69011.0,0.058066]
[1722263524754,0.83107904,69012.0,69011.0,0.058066]
[1722263524956,0.0015542,69011.0,68998.0,0.1]
[1722263525140,0.0015542,69011.0,68993.0,0.02881181]
[1722263525141,0.07154355,69002.0,68993.0,0.02881181]
[1722263525344,0.07154355,69002.0,68992.0,0.468]
[1722263525345,0.27898155,68995.0,68994.0,0.14309939]
[1722263525651,0.27898155,68995.0,68992.0,0.058083]
[1722263525652,0.72471,68993.0,68992.0,0.058083]
[1722263525899,0.144962,68984.0,68982.0,0.468]
[1722263526090,0.07154355,68983.0,68982.0,0.468]
[1722263526300,0.01115062,68983.0,68982.0,0.468]
[1722263526533,0.144963,68983.0,68982.0,0.61109939]
[1722263526941,0.1465132,68985.0,68982.0,0.61109939]
[1722263527113,0.0015542,68985.0,68983.0,0.14309939]
[1722263527310,0.13404355,68995.0,68983.0,0.14599836]
[1722263527311,0.144946,68991.0,68983.0,0.14599836]
[1722263527515,0.0015542,68990.0,68983.0,0.14309939]
[1722263527721,0.31419338,68990.0,68983.0,0.14309939]
[1722263527927,0.07154355,68986.0,68983.0,0.14309939]
[1722263528151,0.434883,68984.0,68983.0,0.14309939]
[1722263528376,0.73595151,68984.0,68983.0,0.14309939]
[1722263528783,0.01114651,68984.0,68983.0,0.14309939]
[1722263528988,0.0015542,68985.0,68983.0,0.14309939]
[1722263529198,0.0625,68995.0,68983.0,0.14309939]
[1722263529199,0.144944,68992.0,68983.0,0.14309939]
[1722263529400,0.15764616,68991.0,68983.0,0.14309939]
[1722263529618,0.15764616,68991.0,68984.0,0.14496]
[1722263529619,0.144948,68990.0,68984.0,0.14496]
[1722263529816,0.144955,68987.0,68985.0,0.14309939]
[1722263530266,0.0015542,68986.0,68985.0,0.14309939]
[1722263530468,0.50641255,68986.0,68985.0,0.14309939]
[1722263530680,0.37260464,68986.0,68971.0,0.468]
[1722263530892,0.07154355,68978.0,68972.0,0.14309939]
[1722263531098,0.289925,68984.0,68975.0,0.058097]
[1722263531318,0.434926,68977.0,68976.0,0.14309939]
[1722263531518,0.724877,68977.0,68976.0,0.14309939]
[1722263531729,0.724877,68977.0,68976.0,0.14209939]
[1722263531940,0.434932,68976.0,68975.0,0.02881181]
[1722263532150,0.434932,68976.0,68975.0,0.1719112]
[1722263532389,0.144986,68972.0,68971.0,0.526101]
[1722263532647,0.434958,68972.0,68971.0,0.14309939]
[1722263532806,0.145001,68965.0,68964.0,0.02881181]
[1722263532977,0.0642542,68976.0,68964.0,0.02881181]
[1722263532978,0.289986,68969.0,68966.0,0.058105]
[1722263533182,0.144996,68967.0,68966.0,0.058105]
[1722263533382,0.144996,68967.0,68966.0,0.14309939]
[1722263533383,0.434989,68967.0,68966.0,0.14309939]
[1722263534537,0.144996,68967.0,68966.0,0.14309939]
[1722263534773,0.07154355,68968.0,68959.0,0.468]
[1722263534975,0.07154355,68968.0,68960.0,0.14309939]
[1722263534976,0.145008,68962.0,68960.0,0.14309939]
[1722263535696,0.145011,68960.0,68959.0,0.468]
[1722263535849,0.285713,68959.0,68958.0,0.058112]
[1722263536049,0.1407,68959.0,68941.0,0.476976]
[1722263536253,0.07154355,68951.0,68942.0,0.49131939]
[1722263536452,0.1407,68959.0,68942.0,0.20122139]
[1722263536650,0.145026,68953.0,68946.0,0.145039]
[1722263536855,0.145031,68951.0,68947.0,0.14309939]
[1722263537054,0.290057,68952.0,68947.0,0.14309939]
[1722263537397,0.1407,68959.0,68947.0,0.14309939]
[1722263537600,0.290046,68955.0,68947.0,0.28813739]
[1722263537837,0.145028,68952.0,68947.0,0.14309939]
[1722263538111,0.07154355,68954.0,68947.0,0.14309939]
[1722263538489,0.435109,68948.0,68947.0,0.14309939]
[1722263538690,0.725182,68948.0,68947.0,0.14309939]
[1722263539525,0.145047,68943.0,68942.0,0.058122]
[1722263539739,0.435141,68943.0,68942.0,0.058122]
[1722263540325,0.74799178,68943.0,68942.0,0.058122]
[1722263540534,0.74799178,68943.0,68941.0,0.008976]
[1722263540535,0.435147,68942.0,68941.0,0.008976]
[1722263540757,1.23248655,68942.0,68941.0,0.008976]
[1722263541908,0.94238855,68942.0,68941.0,0.008976]
[1722263542371,0.65229055,68942.0,68941.0,0.008976]
[1722263542573,0.94238855,68942.0,68941.0,0.008976]
[1722263542827,0.94238855,68942.0,68941.0,0.016976]
[1722263543956,0.96514789,68942.0,68941.0,0.016976]
[1722263544887,1.25524589,68942.0,68941.0,0.016976]
[1722263545076,1.30524589,68942.0,68941.0,0.016976]
[1722263545280,1.28248655,68942.0,68941.0,0.016976]
[1722263545474,0.290649,68942.0,68941.0,0.016976]
[1722263545692,0.580747,68942.0,68941.0,0.016976]
[1722263545830,0.225949,68942.0,68941.0,0.016976]
[1722263546039,0.436147,68942.0,68941.0,0.016976]
[1722263546247,0.001,68942.0,68941.0,0.016976]
[1722263546449,0.146049,68942.0,68941.0,0.008976]
[1722263546664,0.436147,68942.0,68941.0,0.008976]
[1722263547116,0.001,68942.0,68941.0,0.29712639]
[1722263547269,0.001,68942.0,68941.0,0.88133239]
[1722263547483,0.001,68942.0,68941.0,1.24833539]
[1722263547890,0.001,68942.0,68941.0,1.75483839]
[1722263548211,0.289968,68974.0,68958.0,0.0809]
[1722263548351,0.0655542,68977.0,68959.0,0.14309939]
[1722263548352,0.07154355,68970.0,68959.0,0.14309939]
[1722263548590,0.14501,68961.0,68959.0,0.14309939]
[1722263548786,0.07154355,68970.0,68950.0,0.02881181]
[1722263548787,0.07154355,68960.0,68950.0,0.02881181]
[1722263549100,0.07154355,68960.0,68944.0,0.368588]
[1722263549101,0.21655555,68960.0,68954.0,0.145023]
[1722263549310,0.07154355,68959.0,68955.0,0.14309939]
[1722263549826,0.07154355,68959.0,68955.0,0.28812039]
[1722263550033,0.145017,68958.0,68955.0,0.14309939]
[1722263550274,0.07154355,68959.0,68955.0,0.14309939]
[1722263550968,0.290003,68965.0,68955.0,0.28812039]
[1722263551169,0.14501,68961.0,68955.0,0.28812039]
[1722263551477,0.289969,68973.0,68958.0,0.145015]
[1722263551648,0.145003,68964.0,68958.0,0.145015]
[1722263552194,0.02275101,68963.0,68957.0,0.290033]
[1722263552409,0.289985,68969.0,68958.0,0.145015]
[1722263552410,0.145001,68965.0,68958.0,0.145015]
[1722263552621,0.07154355,68963.0,68959.0,0.14309939]
[1722263552871,0.07154355,68963.0,68954.0,0.02881181]
[1722263553090,0.290015,68962.0,68956.0,0.14309939]
[1722263553329,0.43504,68959.0,68958.0,0.012]
[1722263553535,0.725067,68959.0,68958.0,0.012]
[1722263553844,0.725067,68959.0,68954.0,0.02881181]
[1722263553845,0.145022,68955.0,68954.0,0.02881181]
[1722263553971,0.21656555,68955.0,68954.0,0.1719112]
[1722263554379,0.290027,68959.0,68954.0,0.1719112]
[1722263554580,0.145018,68957.0,68954.0,0.1719112]
[1722263555087,0.290018,68962.0,68954.0,0.1719112]
[1722263555088,0.289999,68966.0,68955.0,0.14309939]
[1722263555287,0.145005,68963.0,68957.0,0.145016]
[1722263555501,0.145009,68961.0,68958.0,0.14309939]
[1722263555707,0.07154355,68963.0,68958.0,0.14309939]
[1722263555855,0.07154355,68963.0,68954.0,0.02881181]
[1722263556056,0.07154355,68963.0,68955.0,0.14309939]
[1722263556257,0.14502,68956.0,68955.0,0.14309939]
[1722263556691,0.290044,68955.0,68954.0,0.02881181]
[1722263556903,0.07154355,68963.0,68944.0,0.10731181]
[1722263557068,0.21656355,68956.0,68955.0,0.003]
[1722263557269,0.50660355,68956.0,68955.0,0.003]
[1722263557522,0.88080879,68956.0,68955.0,0.003]
[1722263558142,0.49076879,68956.0,68955.0,0.003]
[1722263558282,0.40660355,68956.0,68955.0,0.003]
[1722263558871,1.07079971,68956.0,68955.0,0.003]
[1722263559001,0.98668355,68956.0,68955.0,0.003]
[1722263559440,1.41083883,68956.0,68955.0,0.003]
[1722263559637,1.51083883,68956.0,68955.0,0.003]
[1722263559904,1.51057482,68956.0,68955.0,0.016]
[1722263560075,1.98241482,68956.0,68955.0,0.016]
[1722263560247,2.23313566,68956.0,68955.0,0.016]
[1722263560460,2.44628504,68956.0,68955.0,0.003]
[1722263560686,2.44628504,68956.0,68941.0,0.022976]
[1722263560687,1.204543,68942.0,68941.0,0.022976]
[1722263560889,1.70649053,68942.0,68941.0,0.022976]
[1722263561294,1.65649053,68942.0,68941.0,0.022976]
[1722263561679,1.88243009,68942.0,68941.0,0.022976]
[1722263561870,2.14028318,68942.0,68941.0,0.022976]
[1722263562062,1.96467821,68942.0,68941.0,0.022976]
[1722263562257,2.26380078,68942.0,68941.0,0.022976]
[1722263562483,2.02604196,68942.0,68941.0,0.022976]
[1722263562682,2.14114945,68942.0,68941.0,0.022976]
[1722263562882,2.14114945,68942.0,68941.0,0.008976]
[1722263563853,2.16390969,68942.0,68941.0,0.008976]
[1722263565404,2.0488022,68942.0,68941.0,0.008976]
[1722263565681,2.16398297,68942.0,68941.0,0.008976]
[1722263565808,2.0488022,68942.0,68941.0,0.008976]
[1722263566015,2.05664211,68942.0,68941.0,0.008976]
[1722263566233,0.99666361,68942.0,68941.0,0.008976]
[1722263566457,0.9402089,68942.0,68941.0,0.008976]
[1722263567326,0.3600129,68942.0,68941.0,0.008976]
[1722263567525,0.10712399,68942.0,68941.0,0.008976]
[1722263568258,0.68731999,68942.0,68941.0,0.008976]
[1722263568404,1.122607,68942.0,68941.0,0.008976]
[1722263568609,0.88895191,68942.0,68941.0,0.008976]
[1722263568788,0.51435015,68942.0,68941.0,0.008976]
[1722263568992,0.59889731,68942.0,68941.0,0.008976]
[1722263569197,0.59889731,68942.0,68941.0,0.021976]
[1722263569397,0.16375031,68942.0,68941.0,0.021976]
[1722263569803,0.2523564,68942.0,68941.0,0.021976]
[1722263570009,0.2523564,68942.0,68941.0,0.008976]
[1722263570010,0.8335524,68942.0,68941.0,0.008976]
[1722263570207,1.3771937,68942.0,68941.0,0.008976]
[1722263570429,1.81534713,68942.0,68941.0,0.008976]
[1722263570628,0.145084,68926.0,68923.0,0.42926131]
[1722263570828,0.05,68939.0,68923.0,0.42926131]
[1722263570829,0.07154355,68938.0,68923.0,0.42926131]
[1722263571073,0.07154355,68924.0,68917.0,0.02881181]
[1722263571218,0.07154355,68931.0,68916.0,0.058147]
[1722263571428,0.07154355,68931.0,68916.0,0.34634939]
[1722263571429,0.145092,68922.0,68916.0,0.34634939]
[1722263571607,0.290177,68924.0,68917.0,0.145101]
[1722263571608,0.290174,68924.0,68917.0,0.145101]
[1722263571805,0.29015,68930.0,68918.0,0.43329839]
[1722263572030,0.29015,68930.0,68921.0,0.145093]
[1722263572031,0.145081,68927.0,68921.0,0.145093]
[1722263572206,0.145081,68927.0,68921.0,0.28819239]
[1722263572428,0.290163,68927.0,68921.0,0.14309939]
[1722263572630,0.290175,68924.0,68921.0,0.14309939]
[1722263572830,0.08508838,68923.0,68921.0,0.14309939]
[1722263573035,0.145089,68923.0,68921.0,0.14309939]
[1722263573236,0.290151,68930.0,68917.0,0.058147]
[1722263573438,0.15655791,68929.0,68915.0,0.070576]
[1722263573638,0.145091,68922.0,68921.0,0.014]
[1722263573971,1.10065436,68922.0,68921.0,0.014]
[1722263574386,1.10065436,68922.0,68915.0,0.070576]
[1722263574387,0.435312,68916.0,68915.0,0.070576]
[1722263574948,0.145102,68917.0,68915.0,0.070576]
[1722263575141,0.145104,68916.0,68915.0,0.070576]
[1722263575477,0.145102,68917.0,68915.0,0.070576]
[1722263575902,0.02276268,68922.0,68915.0,0.070576]
[1722263576110,0.145096,68920.0,68915.0,0.070576]
[1722263576269,0.02276268,68922.0,68921.0,0.145093]
[1722263576470,0.145081,68927.0,68921.0,0.145093]
[1722263576710,0.29017,68925.0,68917.0,0.290204]
[1722263576884,0.290148,68931.0,68917.0,0.290204]
[1722263576885,0.145089,68923.0,68918.0,0.14309939]
[1722263577088,0.145083,68926.0,68920.0,0.145095]
[1722263577288,0.290159,68928.0,68921.0,0.014]
[1722263577489,0.145086,68925.0,68921.0,0.014]
[1722263577773,0.145086,68925.0,68915.0,0.360784]
[1722263577774,0.2471,68942.0,68922.0,0.14309939]
[1722263577974,0.14169991,68940.0,68925.0,0.29017]
[1722263578194,0.290133,68934.0,68923.0,0.290177]
[1722263578393,0.0861076,68933.0,68928.0,0.1395]
[1722263578595,0.14507,68932.0,68928.0,0.1395]
[1722263578894,0.0858537,68931.0,68928.0,0.1395]
[1722263579138,0.290099,68942.0,68929.0,0.14309939]
[1722263579341,0.08587537,68941.0,68929.0,0.14309939]
[1722263579518,0.08587537,68940.0,68936.0,0.14506]
[1722263579717,0.02275981,68939.0,68937.0,0.145059]
[1722263579920,0.02275981,68939.0,68938.0,0.145057]
[1722263580168,0.02275981,68939.0,68929.0,0.14309939]
[1722263580406,0.02275981,68939.0,68938.0,0.435172]
[1722263580593,0.02275981,68939.0,68938.0,0.28719939]
[1722263580816,0.02275981,68939.0,68938.0,0.43225639]
[1722263581036,0.00088923,68953.0,68938.0,0.43225639]
[1722263581037,0.00799403,68958.0,68938.0,0.28719939]
[1722263581248,0.08722231,68955.0,68948.0,0.290072]
[1722263581385,0.08602611,68954.0,68948.0,0.290072]
[1722263581748,0.08602611,68954.0,68952.0,0.145027]
[1722263581957,0.0609,68964.0,68948.0,0.43317139]
[1722263581958,0.289986,68969.0,68948.0,0.14309939]
[1722263582123,0.08707835,68962.0,68949.0,0.28919939]
[1722263582332,0.145014,68959.0,68953.0,0.145025]
[1722263582564,0.07154355,68956.0,68949.0,0.28919939]
[1722263582748,0.14503,68952.0,68949.0,0.28919939]
[1722263582985,0.145043,68945.0,68944.0,0.064]
[1722263583197,0.21658655,68945.0,68944.0,0.064]
[1722263583397,0.59370201,68945.0,68944.0,0.064]
[1722263583512,0.1585914,68945.0,68944.0,0.064]
[1722263583707,0.07154355,68945.0,68944.0,0.064]
[1722263584111,0.10983118,68945.0,68944.0,0.35214439]
[1722263584319,0.02275628,68945.0,68944.0,0.64223439]
[1722263585028,0.02275628,68945.0,68944.0,0.93232439]
[1722263585504,0.00084,68965.0,68957.0,0.145017]
[1722263585618,0.14501,68961.0,68955.0,0.145021]
[1722263585820,0.08789591,68960.0,68955.0,0.145021]
[1722263586041,0.08789591,68960.0,68956.0,0.145019]
[1722263586267,0.00084,68965.0,68958.0,0.579446]
[1722263586268,0.08789591,68959.0,68958.0,0.579446]
[1722263586478,0.00084,68965.0,68958.0,0.579446]
[1722263586479,0.00084,68965.0,68964.0,0.145003]
[1722263586691,0.08873784,68965.0,68964.0,0.57810839]
[1722263586905,0.00084,68965.0,68964.0,0.57810839]
[1722263587318,0.00084,68965.0,68964.0,1.1377262]
[1722263587470,0.00084,68965.0,68964.0,1.4277322]
[1722263587673,0.00084,68965.0,68964.0,1.1377262]
[1722263588960,0.02358599,68965.0,68964.0,1.4277322]
[1722263589341,0.02358599,68965.0,68964.0,1.4777322]
[1722263589514,0.02358599,68965.0,68964.0,1.5777322]
[1722263589713,0.02358599,68965.0,68964.0,1.6777322]
[1722263590087,0.02358599,68965.0,68964.0,1.58541975]
[1722263590629,0.02358599,68965.0,68964.0,1.69941975]
[1722263590836,0.02358599,68965.0,68964.0,1.70141975]
[1722263591036,0.02358599,68965.0,68964.0,1.62241975]
[1722263591212,0.02358599,68965.0,68964.0,1.68541975]
[1722263591584,0.02358599,68965.0,68964.0,1.63541975]
[1722263591702,0.02358599,68965.0,68964.0,1.60660794]
[1722263592106,0.02358599,68965.0,68964.0,1.62060794]
[1722263592305,0.02358599,68965.0,68964.0,1.67060794]
[1722263592533,0.02358599,68965.0,68964.0,1.65660794]
[1722263592735,0.02358599,68965.0,68964.0,1.67060794]
[1722263593024,0.02358599,68965.0,68964.0,1.62060794]
[1722263593212,0.02358599,68965.0,68964.0,1.60660794]
[1722263593429,0.02358599,68965.0,68964.0,1.65660794]
[1722263593651,0.02358599,68965.0,68964.0,1.60660794]
[1722263593891,0.02358599,68965.0,68964.0,0.92659594]
[1722263594086,0.02358599,68965.0,68964.0,0.22988694]
[1722263594289,0.145841,68965.0,68964.0,0.15709939]
[1722263594533,0.435843,68965.0,68964.0,0.014]
[1722263595060,0.00084,68965.0,68964.0,0.014]
[1722263595253,0.00084,68965.0,68964.0,0.30210239]
[1722263595410,0.00084,68965.0,68964.0,0.15709939]
[1722263595611,0.145841,68965.0,68964.0,0.014]
[1722263596030,0.145841,68965.0,68958.0,0.292914]
[1722263596031,0.145003,68964.0,68958.0,0.292914]
[1722263596255,0.07309775,68963.0,68958.0,0.14309939]
[1722263596464,0.07154355,68963.0,68952.0,0.02881181]
[1722263596629,0.145021,68956.0,68953.0,0.14309939]
[1722263596830,0.07154355,68956.0,68953.0,0.14309939]
[1722263597030,0.0015542,68955.0,68954.0,0.145024]
[1722263597240,0.2915722,68962.0,68954.0,0.14309939]
[1722263597414,0.07154355,68963.0,68946.0,0.0622]
[1722263597415,0.145029,68952.0,68946.0,0.0622]